bitfinex-derivatives/quotes_BTCF0:USTF0_20250411
["timestamp","ask_amount","ask_price","bid_price","bid_amount"]
[1744338379687,0.1242926,80778.0,80777.0,0.1238941]
[1744338379898,0.1238941,80777.0,80776.0,0.0447]
[1744338380275,0.0004,80778.0,80777.0,0.1238941]
[1744338380493,0.0004,80778.0,80777.0,0.4846941]
[1744338380998,0.1,80800.0,80777.0,0.6108]
[1744338381293,0.1,80800.0,80799.0,0.4846604]
[1744338381786,0.2238589,80800.0,80799.0,0.3608]
[1744338382381,0.3200589,80800.0,80799.0,0.3608]
[1744338383087,0.2238589,80800.0,80799.0,0.3608]
[1744338383294,0.3200589,80800.0,80799.0,0.3608]
[1744338383693,0.3200589,80800.0,80799.0,0.4846604]
[1744338384589,0.3200589,80800.0,80799.0,0.5784604]
[1744338385691,0.3200589,80800.0,80799.0,0.4073]
[1744338385995,0.1238696,80793.0,80792.0,0.3608]
[1744338386387,0.3738696,80793.0,80792.0,0.3608]
[1744338386582,0.23757262,80793.0,80792.0,0.3608]
[1744338386796,0.28327262,80793.0,80792.0,0.3608]
[1744338387192,0.1695696,80793.0,80792.0,0.3608]
[1744338387992,0.1238696,80793.0,80792.0,0.3608]
[1744338388194,0.2200696,80793.0,80792.0,0.3608]
[1744338389691,0.1238696,80793.0,80792.0,0.3608]
[1744338391184,0.2112696,80793.0,80792.0,0.3608]
[1744338393591,0.1238834,80784.0,80783.0,0.0454]
[1744338394496,0.1238849,80783.0,80782.0,0.3608]
[1744338394902,0.1238972,80775.0,80774.0,0.3608]
[1744338395197,0.2200572,80775.0,80774.0,0.3608]
[1744338395599,0.1239125,80765.0,80764.0,0.0463]
[1744338396597,0.1239171,80762.0,80761.0,0.3214085]
[1744338396801,0.1239248,80757.0,80756.0,0.00018568]
[1744338396986,0.2201248,80757.0,80756.0,0.00018568]
[1744338398601,0.2201248,80757.0,80756.0,8e-08]
[1744338398997,0.2201248,80757.0,80753.0,0.13319004]
[1744338398998,0.1239294,80754.0,80753.0,0.13319004]
[1744338399197,0.1239356,80750.0,80749.0,0.28798503]
[1744338399398,0.1239432,80745.0,80744.0,0.0444]
[1744338399696,0.1239632,80732.0,80731.0,0.00049547]
[1744338399895,0.5825232,80732.0,80731.0,7e-08]
[1744338400501,0.6719232,80732.0,80731.0,7e-08]
[1744338401699,0.0619867,80726.0,80719.0,0.28798503]
[1744338401894,0.1239908,80714.0,80713.0,0.0892]
[1744338402088,0.2217508,80714.0,80713.0,0.0892]
[1744338402293,0.23012755,80714.0,80713.0,0.0892]
[1744338402699,0.2217508,80714.0,80713.0,0.0892]
[1744338405305,0.0619768,80739.0,80736.0,0.061978]
[1744338405500,0.1597768,80739.0,80738.0,0.3608]
[1744338406096,0.0619768,80739.0,80738.0,0.3608]
[1744338406305,0.3608,80758.0,80745.0,0.1239431]
[1744338406506,0.0001858,80747.0,80746.0,0.1239412]
[1744338406701,0.0619679,80750.0,80749.0,0.1239371]
[1744338407006,0.0623647,80754.0,80753.0,0.123931]
[1744338407205,0.0623647,80754.0,80753.0,0.484731]
[1744338407406,0.0623647,80754.0,80753.0,0.734731]
[1744338407602,0.0623647,80754.0,80753.0,0.484731]
[1744338407905,0.0623647,80754.0,80753.0,0.49381685]
[1744338408093,0.0004,80754.0,80753.0,0.49381685]
[1744338408298,0.00018557,80762.0,80761.0,0.1239187]
[1744338408502,0.00018557,80762.0,80761.0,0.4847187]
[1744338408701,0.0978,80768.0,80767.0,0.1239095]
[1744338408901,0.123911,80766.0,80765.0,0.0619557]
[1744338409704,0.0978,80768.0,80767.0,0.1239095]
[1744338410001,0.0978,80768.0,80767.0,0.4847095]
[1744338411109,0.2217079,80768.0,80767.0,0.3608]
[1744338412108,0.0978,80768.0,80767.0,0.4847095]
[1744338412312,0.0619445,80781.0,80777.0,0.1238941]
[1744338412614,0.0619419,80784.0,80777.0,0.4846941]
[1744338412806,0.1238889,80781.0,80777.0,0.4846941]
[1744338413110,0.0619427,80783.0,80777.0,0.4846941]
[1744338413306,0.1238816,80786.0,80777.0,0.4846941]
[1744338413506,0.123883,80785.0,80784.0,0.1238834]
[1744338413710,0.123883,80785.0,80784.0,0.4846834]
[1744338414808,0.123883,80785.0,80784.0,0.3608]
[1744338415708,0.1238819,80785.0,80784.0,0.3608]
[1744338416513,0.1238819,80785.0,80784.0,0.4058]
[1744338417109,0.1238819,80785.0,80784.0,0.5296834]
[1744338417310,0.1238819,80785.0,80784.0,0.4058]
[1744338417714,0.1238819,80785.0,80784.0,0.5296834]
[1744338417910,0.00840598,80791.0,80790.0,0.1238742]
[1744338418209,0.1238727,80791.0,80790.0,0.3608]
[1744338419922,0.0619453,80780.0,80772.0,0.3608]
[1744338420121,0.0619453,80780.0,80779.0,0.3608]
[1744338420512,0.1238871,80782.0,80779.0,0.4227451]
[1744338420813,0.123888,80781.0,80780.0,0.1656892]
[1744338421006,0.123888,80781.0,80780.0,0.0418]
[1744338421817,0.1238895,80780.0,80779.0,0.3608]
[1744338422217,0.2150895,80780.0,80779.0,0.3608]
[1744338425520,0.1238987,80774.0,80773.0,0.0418]
[1744338425731,0.1239003,80773.0,80772.0,0.3608]
[1744338425906,0.2095003,80773.0,80772.0,0.3608]
[1744338426106,0.1667003,80773.0,80772.0,0.3608]
[1744338426412,0.1239003,80773.0,80772.0,0.3608]
[1744338426711,0.1239003,80773.0,80772.0,0.4058]
[1744338426915,0.2098003,80773.0,80772.0,0.3608]
[1744338427223,0.2098003,80773.0,80769.0,0.0001858]
[1744338427224,0.1239049,80770.0,80769.0,0.0001858]
[1744338430618,0.0619515,80772.0,80756.0,0.045]
[1744338430619,0.1239187,80761.0,80757.0,0.0445]
[1744338430827,0.1239263,80756.0,80754.0,0.3608]
[1744338431429,0.2228863,80756.0,80755.0,0.08819532]
[1744338432224,0.3106863,80756.0,80755.0,0.08819532]
[1744338432425,0.3106863,80756.0,80755.0,0.04369532]
[1744338432631,0.3106863,80756.0,80755.0,0.00049532]
[1744338432822,0.1239371,80749.0,80748.0,0.0432]
[1744338433022,0.1239386,80748.0,80747.0,0.00018568]
[1744338434420,0.1239386,80748.0,80747.0,0.12412588]
[1744338434612,0.1239386,80748.0,80747.0,0.00018568]
[1744338436017,0.2228986,80748.0,80747.0,0.00018568]
[1744338436220,0.1239386,80748.0,80747.0,0.00018568]
[1744338436420,0.123931,80754.0,80752.0,0.0619652]
[1744338436620,0.123931,80754.0,80747.0,0.00018568]
[1744338436621,0.123931,80754.0,80753.0,0.4516]
[1744338437423,0.1239289,80755.0,80754.0,0.1858903]
[1744338437728,0.1239289,80755.0,80754.0,0.0887]
[1744338439430,0.1239289,80755.0,80754.0,0.0433]
[1744338441634,0.1239294,80754.0,80753.0,0.3608]
[1744338441826,0.1671294,80754.0,80753.0,0.3608]
[1744338442227,0.1239386,80748.0,80747.0,0.00018568]
[1744338444039,0.1239555,80737.0,80736.0,0.3608]
[1744338444233,0.1239555,80737.0,80731.0,0.00049547]
[1744338444234,0.1239632,80732.0,80731.0,0.00049547]
[1744338444432,0.0619794,80735.0,80731.0,0.36129547]
[1744338444734,0.09896,80737.0,80736.0,0.123957]
[1744338444936,0.2229155,80737.0,80736.0,0.123957]
[1744338445338,0.1239555,80737.0,80736.0,0.1292]
[1744338445537,0.1239555,80737.0,80736.0,0.253157]
[1744338445730,0.1239555,80737.0,80736.0,0.1292]
[1744338445935,0.0619748,80741.0,80736.0,0.3792]
[1744338446138,0.0619748,80741.0,80740.0,0.1239509]
[1744338446437,0.0621574,80745.0,80744.0,0.1239448]
[1744338446738,0.1239396,80750.0,80749.0,0.0619679]
[1744338447125,0.1239396,80750.0,80749.0,0.1504679]
[1744338448540,0.1239396,80750.0,80749.0,0.0885]
[1744338449441,0.1239396,80750.0,80749.0,0.2124371]
[1744338450934,0.1239276,80756.0,80755.0,0.1239263]
[1744338451134,0.2228876,80756.0,80755.0,0.4847263]
[1744338451734,0.2228876,80756.0,80755.0,0.3608]
[1744338452140,0.1239356,80750.0,80749.0,0.0885]
[1744338452341,0.1239356,80750.0,80749.0,0.0435]
[1744338453143,0.2097356,80750.0,80749.0,0.0435]
[1744338453547,0.2097356,80750.0,80749.0,0.0858]
[1744338454248,0.1239386,80748.0,80747.0,0.0001858]
[1744338454548,0.1239494,80741.0,80740.0,0.0419]
[1744338454750,0.2229094,80741.0,80740.0,0.0419]
[1744338455044,0.2229094,80741.0,80732.0,0.0438]
[1744338455045,0.1239617,80733.0,80732.0,0.0438]
[1744338455242,0.1239632,80732.0,80730.0,0.3608]
[1744338455442,0.1663632,80732.0,80730.0,0.3608]
[1744338455746,0.1663632,80732.0,80731.0,0.04469547]
[1744338456846,0.1663632,80732.0,80731.0,0.00049547]
[1744338458334,0.1663632,80732.0,80731.0,0.08799547]
[1744338458848,0.1239556,80739.0,80738.0,0.1239524]
[1744338459038,0.0001858,80740.0,80739.0,0.1239524]
[1744338459244,0.1241367,80740.0,80739.0,0.0442]
[1744338459443,0.1694367,80740.0,80739.0,0.0442]
[1744338459643,0.1694367,80740.0,80739.0,0.0875]
[1744338459845,0.0001858,80740.0,80739.0,0.0875]
[1744338460047,0.0001858,80740.0,80739.0,0.2114524]
[1744338460444,0.1239285,80757.0,80756.0,0.1239248]
[1744338460647,0.2250485,80757.0,80756.0,0.4847248]
[1744338461550,0.1239285,80757.0,80756.0,0.4847248]
[1744338461944,0.1239285,80757.0,80756.0,0.3608]
[1744338462662,0.2107285,80757.0,80756.0,0.3608]
[1744338462848,0.3118485,80757.0,80756.0,0.3608]
[1744338463542,0.2107285,80757.0,80756.0,0.3608]
[1744338463743,0.3118485,80757.0,80756.0,0.3608]
[1744338464250,0.2107285,80757.0,80756.0,0.3608]
[1744338464754,0.3118485,80757.0,80756.0,0.3608]
[1744338466056,0.2107285,80757.0,80756.0,0.3608]
[1744338466451,0.0619604,80760.0,80759.0,0.1239217]
[1744338466841,0.1239233,80758.0,80757.0,0.0446]
[1744338467145,0.1239248,80757.0,80756.0,0.3608]
[1744338467345,0.1662248,80757.0,80756.0,0.3608]
[1744338468352,0.2101355,80763.0,80757.0,0.1239248]
[1744338468558,0.0619587,80762.0,80761.0,0.1239173]
[1744338468755,0.1481776,80763.0,80762.0,0.1239171]
[1744338468960,0.1481776,80772.0,80771.0,0.1239033]
[1744338469252,0.1481776,80772.0,80771.0,0.8455033]
[1744338470162,0.2720794,80772.0,80771.0,0.8455033]
[1744338470358,0.185222,80779.0,80777.0,0.1238941]
[1744338471757,0.185222,80779.0,80777.0,0.7907941]
[1744338471962,0.061932,80797.0,80785.0,0.1238819]
[1744338472262,0.05213047,80786.0,80785.0,1.2623819]
[1744338472462,0.29342551,80807.0,80799.0,0.1238604]
[1744338472664,0.29342551,80807.0,80799.0,1.2623604]
[1744338473157,0.28822396,80800.0,80799.0,1.2623604]
[1744338473364,0.0307,80800.0,80799.0,1.2623604]
[1744338473755,0.1545589,80800.0,80799.0,1.2623604]
[1744338474264,0.0307,80800.0,80799.0,1.2623604]
[1744338475465,0.1545589,80800.0,80799.0,1.1385]
[1744338475656,0.1545589,80800.0,80799.0,1.2623604]
[1744338476151,0.0307,80800.0,80799.0,1.2623604]
[1744338476555,0.1545589,80800.0,80799.0,1.2623604]
[1744338477462,0.1545589,80800.0,80799.0,0.7216]
[1744338477862,0.1545589,80800.0,80799.0,0.8454604]
[1744338478258,0.0307,80800.0,80799.0,0.8454604]
[1744338479965,0.0004,80802.0,80801.0,0.1238573]
[1744338480168,0.10148,80850.0,80825.0,0.1238206]
[1744338480365,1e-07,80826.0,80825.0,1.2623206]
[1744338480969,0.0004,80850.0,80849.0,0.1237838]
[1744338481170,0.0004,80850.0,80849.0,0.4845838]
[1744338482265,0.1241823,80850.0,80849.0,0.4845838]
[1744338482473,0.0004,80850.0,80849.0,0.4845838]
[1744338483068,0.1241823,80850.0,80849.0,0.4845838]
[1744338483373,0.0004,80850.0,80849.0,0.4845838]
[1744338483573,0.0004,80850.0,80849.0,0.5270838]
[1744338483767,0.1241823,80850.0,80849.0,0.4033]
[1744338484465,0.0004,80850.0,80849.0,0.5270838]
[1744338485673,0.1237924,80844.0,80842.0,0.0425]
[1744338485975,0.1237876,80847.0,80846.0,0.1237857]
[1744338486170,0.1237945,80842.0,80841.0,0.00018556]
[1744338487168,0.1694945,80842.0,80841.0,0.00018556]
[1744338487374,0.1694945,80842.0,80841.0,0.12398156]
[1744338488579,0.0443,80843.0,80841.0,0.12398156]
[1744338488781,0.1237945,80842.0,80841.0,0.12398156]
[1744338489081,0.1237945,80842.0,80841.0,0.16768156]
[1744338489475,0.1237945,80842.0,80841.0,0.00018556]
[1744338490972,0.1695945,80842.0,80841.0,0.00018556]
[1744338491381,0.1695945,80842.0,80841.0,0.04388556]
[1744338491591,0.1695945,80842.0,80841.0,0.16768156]
[1744338491778,0.2125945,80842.0,80841.0,0.16768156]
[1744338492083,0.2125945,80842.0,80841.0,0.04388556]
[1744338492283,0.2125945,80842.0,80841.0,0.16768156]
[1744338492482,0.2125945,80842.0,80841.0,0.04388556]
[1744338492785,0.2125945,80842.0,80841.0,0.00018556]
[1744338493075,0.0888,80842.0,80841.0,0.12398156]
[1744338493474,0.2125945,80842.0,80841.0,0.12398156]
[1744338494481,0.0458,80842.0,80841.0,0.12398156]
[1744338494682,0.1695945,80842.0,80841.0,0.12398156]
[1744338494879,0.1695945,80842.0,80841.0,0.00018556]
[1744338495078,0.2575945,80842.0,80841.0,0.00018556]
[1744338495283,0.1238006,80838.0,80837.0,0.3608]
[1744338495481,0.1238006,80838.0,80837.0,0.4846022]
[1744338495977,0.0618993,80840.0,80839.0,0.1237991]
[1744338496679,0.0891,80842.0,80841.0,0.123796]
[1744338497273,0.0891,80842.0,80841.0,0.14190245]
[1744338497891,0.1695945,80842.0,80841.0,0.14190245]
[1744338498379,0.0458,80842.0,80841.0,0.14190245]
[1744338498585,0.0458,80842.0,80841.0,0.18680245]
[1744338498972,0.0458,80842.0,80841.0,0.01810645]
[1744338499173,0.1695945,80842.0,80841.0,0.01810645]
[1744338499380,0.1695945,80842.0,80841.0,0.14190245]
[1744338500883,0.1695945,80842.0,80841.0,0.01810645]
[1744338501082,0.05162967,80844.0,80841.0,0.14190135]
[1744338501282,0.123793,80843.0,80842.0,0.06080645]
[1744338501592,0.123793,80843.0,80842.0,0.06068538]
[1744338502796,0.123793,80843.0,80842.0,0.18447988]
[1744338502996,0.1856855,80845.0,80844.0,0.1237915]
[1744338503201,0.1856855,80845.0,80844.0,0.50257688]
[1744338503993,0.1856855,80845.0,80844.0,0.37878538]
[1744338505395,0.1856855,80845.0,80844.0,0.01798538]
[1744338505595,0.1238052,80835.0,80834.0,0.0448]
[1744338505796,0.1238068,80834.0,80833.0,0.2852416]
[1744338505990,0.2801068,80834.0,80833.0,0.1624978]
[1744338506197,0.0619066,80830.0,80812.0,0.3608]
[1744338506395,0.1238282,80820.0,80812.0,0.3608]
[1744338506598,0.1238481,80807.0,80804.0,0.00928545]
[1744338506787,0.1238481,80807.0,80803.0,0.54428714]
[1744338507100,0.1238481,80807.0,80806.0,0.36464535]
[1744338507798,0.13294563,80807.0,80806.0,0.36464535]
[1744338508198,0.13294563,80807.0,80806.0,0.05152175]
[1744338508397,0.38294563,80807.0,80806.0,5e-08]
[1744338508599,0.13294563,80807.0,80806.0,5e-08]
[1744338508801,0.1238589,80800.0,80799.0,0.59383412]
[1744338509298,0.3608,80801.0,80789.0,0.3608]
[1744338509511,0.1238665,80795.0,80794.0,0.0425]
[1744338509800,0.2560665,80795.0,80794.0,0.0425]
[1744338510201,0.1238681,80794.0,80789.0,0.3608]
[1744338510397,0.2141681,80794.0,80789.0,0.3608]
[1744338511102,0.1238742,80790.0,80789.0,0.3608]
[1744338512098,0.1238718,80792.0,80789.0,0.3608]
[1744338512305,0.1238718,80792.0,80791.0,0.1858054]
[1744338512501,0.1238742,80790.0,80789.0,0.3608]
[1744338513195,0.1238742,80790.0,80789.0,0.4846757]
[1744338514400,0.00018556,80798.0,80797.0,0.1238635]
[1744338514799,0.00018556,80798.0,80797.0,0.4846635]
[1744338515704,0.11090504,80805.0,80804.0,0.1238527]
[1744338515908,0.11090504,80805.0,80804.0,0.4846527]
[1744338516495,0.04030504,80805.0,80804.0,0.4846527]
[1744338516700,0.1857395,80824.0,80823.0,0.1238215]
[1744338517001,0.3136995,80824.0,80823.0,0.1238215]
[1744338517702,0.1898719,80824.0,80823.0,0.1238215]
[1744338517905,0.0004,80826.0,80825.0,0.1238206]
[1744338518206,0.0004,80826.0,80825.0,0.9015206]
[1744338519400,0.0004,80826.0,80825.0,1.1515206]
[1744338519608,0.0004,80826.0,80825.0,0.9015206]
[1744338521408,0.124219,80826.0,80825.0,0.7777]
[1744338521708,0.124219,80826.0,80825.0,0.3608]
[1744338522508,0.1238313,80818.0,80817.0,0.3608]
[1744338522896,0.1238313,80818.0,80817.0,0.4846328]
[1744338524107,0.1238313,80818.0,80817.0,0.3608]
[1744338524314,0.2160313,80818.0,80817.0,0.3608]
[1744338526196,0.0619221,80810.0,80802.0,0.4846549]
[1744338526402,0.1238543,80803.0,80802.0,0.4846549]
[1744338527404,0.1238543,80803.0,80802.0,0.3608]
[1744338527608,0.1238665,80795.0,80790.0,0.1238732]
[1744338527813,0.1238665,80795.0,80794.0,0.12405366]
[1744338528306,0.1857988,80797.0,80794.0,0.00018556]
[1744338528501,0.1238481,80807.0,80802.0,0.0619279]
[1744338528696,0.1857727,80807.0,80806.0,0.1238481]
[1744338528899,0.1238512,80805.0,80804.0,0.3608]
[1744338529309,0.1238619,80798.0,80797.0,0.0471]
[1744338529811,0.1238665,80795.0,80794.0,0.36098556]
[1744338530010,0.0619291,80802.0,80801.0,0.1238537]
[1744338530510,0.123865,80797.0,80796.0,0.1857964]
[1744338530906,0.123865,80796.0,80795.0,0.045]
[1744338531106,0.123865,80796.0,80795.0,0.0921]
[1744338531514,0.123865,80796.0,80795.0,0.2159665]
[1744338531804,0.0619289,80801.0,80800.0,0.1238558]
[1744338532004,0.0619289,80801.0,80800.0,0.2164558]
[1744338532401,0.1238665,80795.0,80794.0,0.36098556]
[1744338532797,0.1238665,80795.0,80794.0,0.48485366]
[1744338535004,0.2518164,80803.0,80802.0,0.1238558]
[1744338535203,0.00018556,80811.0,80804.0,0.0619263]
[1744338535409,0.00018556,80811.0,80810.0,0.4846435]
[1744338535607,0.12402756,80811.0,80810.0,0.4846435]
[1744338535802,0.00018556,80811.0,80810.0,0.4846435]
[1744338536003,0.00018556,80811.0,80810.0,0.50083457]
[1744338537513,0.12402756,80811.0,80810.0,0.50083457]
[1744338538510,0.12402756,80811.0,80810.0,0.37699107]
[1744338538715,0.12402756,80811.0,80810.0,0.01619107]
[1744338539210,0.18594976,80811.0,80810.0,0.4846435]
[1744338539404,0.00018556,80811.0,80810.0,0.4846435]
[1744338539804,0.12402756,80811.0,80810.0,0.4846435]
[1744338540016,0.12402756,80811.0,80810.0,0.4069]
[1744338540208,0.12402756,80811.0,80810.0,0.3608]
[1744338540607,0.1857758,80807.0,80806.0,0.1238496]
[1744338540909,0.0619246,80807.0,80806.0,0.1238496]
[1744338541106,0.1238527,80804.0,80803.0,0.3608]
[1744338542113,0.0619254,80806.0,80794.0,0.00018556]
[1744338542114,0.1238665,80795.0,80794.0,0.00018556]
[1744338543113,0.1717665,80795.0,80794.0,0.00018556]
[1744338544015,0.5783665,80795.0,80794.0,0.00018556]
[1744338544407,0.1238665,80795.0,80794.0,0.12405366]
[1744338544809,0.1238636,80797.0,80796.0,0.1238619]
[1744338545200,0.1238636,80797.0,80796.0,0.185794]
[1744338545909,0.1238665,80795.0,80794.0,0.00018556]
[1744338546617,0.1708665,80795.0,80794.0,0.00018556]
[1744338549305,0.2170665,80795.0,80794.0,0.00018556]
[1744338551817,0.0619365,80791.0,80779.0,0.00049518]
[1744338552025,0.1239263,80756.0,80751.0,0.3608]
[1744338552206,0.2493263,80756.0,80748.0,0.3608]
[1744338553116,0.1239371,80749.0,80748.0,0.3608]
[1744338553307,0.0619675,80751.0,80747.0,0.00018567]
[1744338553308,0.1239386,80748.0,80747.0,0.00018567]
[1744338553510,0.1712386,80748.0,80747.0,0.00018567]
[1744338554417,0.0619675,80751.0,80747.0,0.00018567]
[1744338554418,0.1239367,80751.0,80747.0,0.00018567]
[1744338554623,0.1239371,80751.0,80750.0,0.1239348]
[1744338555219,0.1239371,80749.0,80748.0,0.5333381]
[1744338555419,0.1239371,80749.0,80748.0,0.4094]
[1744338555618,0.1239386,80748.0,80747.0,0.00018567]
[1744338555922,0.1726386,80748.0,80747.0,0.00018567]
[1744338557412,0.4847386,80748.0,80747.0,0.00018567]
[1744338557618,0.1239386,80748.0,80747.0,0.00018567]
[1744338557826,0.2177349,80751.0,80747.0,0.00018567]
[1744338558131,0.1239386,80750.0,80749.0,0.1239345]
[1744338558322,0.1239371,80749.0,80748.0,0.2172377]
[1744338558625,0.1239346,80751.0,80750.0,0.123934]
[1744338559025,0.1070621,80758.0,80748.0,0.3608]
[1744338559226,0.0619621,80758.0,80757.0,0.4847248]
[1744338559430,0.0416,80761.0,80760.0,0.1239202]
[1744338559625,0.1239187,80761.0,80760.0,0.1858797]
[1744338559826,0.1239187,80761.0,80760.0,0.0619595]
[1744338560128,0.1239233,80759.0,80758.0,0.1239227]
[1744338560321,0.1239233,80758.0,80757.0,0.3608]
[1744338560522,0.2145233,80758.0,80757.0,0.3608]
[1744338561022,0.00018567,80764.0,80763.0,0.1239156]
[1744338563426,0.1239187,80761.0,80760.0,0.540819]
[1744338564524,0.1239187,80761.0,80760.0,0.4169]
[1744338565622,0.1239217,80759.0,80758.0,0.4847221]
[1744338565920,0.1239217,80759.0,80758.0,0.3608]
[1744338566231,0.1239371,80749.0,80748.0,0.4169]
[1744338566534,0.2494146,80751.0,80750.0,0.1239356]
[1744338566720,0.249414,80751.0,80750.0,0.1239356]
[1744338566921,0.12548,80751.0,80750.0,0.1239356]
[1744338567228,0.12548,80751.0,80750.0,0.4847356]
[1744338567427,0.0619429,80783.0,80750.0,0.7777]
[1744338567630,0.12548,80786.0,80763.0,0.8455156]
[1744338567929,0.123913,80765.0,80763.0,0.8455156]
[1744338568327,0.12409977,80764.0,80763.0,0.8455156]
[1744338571626,0.00018567,80764.0,80763.0,1.2624156]
[1744338571822,0.12409977,80764.0,80763.0,1.2624156]
[1744338572124,0.00018567,80764.0,80763.0,1.2624156]
[1744338573925,0.12409977,80764.0,80763.0,0.3608]
[1744338574132,0.1239325,80753.0,80752.0,0.0385]
[1744338574932,0.1239325,80753.0,80752.0,0.100466]
[1744338576520,0.1239325,80753.0,80752.0,0.139866]
[1744338576725,0.1239222,80759.0,80756.0,0.0619629]
[1744338577034,0.06214287,80764.0,80759.0,0.1239217]
[1744338577535,0.0619596,80761.0,80759.0,0.2023217]
[1744338578332,0.1433603,80760.0,80759.0,0.0396]
[1744338578732,0.1239217,80759.0,80758.0,0.3608]
[1744338579137,0.2053217,80759.0,80758.0,0.3608]
[1744338579332,0.3252817,80759.0,80758.0,0.3608]
[1744338580137,0.20136,80759.0,80747.0,0.00018567]
[1744338580438,0.1239386,80748.0,80747.0,0.00018567]
[1744338581232,0.1239555,80737.0,80728.0,0.3608]
[1744338581430,0.1239555,80737.0,80732.0,0.1631624]
[1744338581637,0.1239555,80737.0,80733.0,0.1239611]
[1744338581938,0.1239555,80737.0,80732.0,0.1631629]
[1744338582138,0.2030555,80737.0,80732.0,0.0392]
[1744338582827,0.0791,80737.0,80731.0,0.00049547]
[1744338583027,0.4847632,80732.0,80731.0,0.00049547]
[1744338583833,0.5620632,80732.0,80731.0,0.00049547]
[1744338584032,0.1239678,80729.0,80728.0,0.00018579]
[1744338585934,0.1239847,80718.0,80717.0,0.3608]
[1744338586737,0.2029847,80718.0,80717.0,0.3608]
[1744338588041,0.1239939,80712.0,80711.0,0.0385]
[1744338588637,0.1239939,80712.0,80711.0,0.1624954]
[1744338588940,0.1239939,80712.0,80711.0,0.0385]
[1744338589142,0.2015939,80712.0,80711.0,0.0385]
[1744338591637,0.1239939,80712.0,80711.0,0.0385]
[1744338591943,0.1239939,80712.0,80711.0,0.1624954]
[1744338593334,0.14798993,80732.0,80725.0,0.1239739]
[1744338593646,0.12415819,80726.0,80725.0,0.4847739]
[1744338593946,0.12415819,80726.0,80725.0,0.5228739]
[1744338594137,0.12415819,80726.0,80725.0,0.5606739]
[1744338596641,0.12415819,80726.0,80725.0,0.3608]
[1744338597034,0.1239832,80719.0,80718.0,0.061992]
[1744338597229,0.00018579,80726.0,80718.0,0.061992]
[1744338597230,0.00018579,80726.0,80725.0,0.1239739]
[1744338597441,0.00018579,80726.0,80725.0,0.4847739]
[1744338597642,0.12415819,80726.0,80725.0,0.4847739]
[1744338598043,0.20455819,80726.0,80725.0,0.4847739]
[1744338598236,0.08058579,80726.0,80725.0,0.4847739]
[1744338598648,0.20455819,80726.0,80725.0,0.4847739]
[1744338598841,0.00018579,80726.0,80725.0,0.5234739]
[1744338601451,0.14798993,80747.0,80746.0,0.1239417]
[1744338601649,0.14798993,80747.0,80746.0,0.4847417]
[1744338602538,0.27193013,80747.0,80746.0,0.3608]
[1744338602841,0.27193013,80747.0,80746.0,0.4847417]
[1744338604147,0.1239402,80747.0,80746.0,0.4847417]
[1744338605449,0.14798993,80748.0,80747.0,0.1239402]
[1744338605652,0.14798993,80748.0,80747.0,0.1640402]
[1744338605846,0.14798993,80748.0,80747.0,0.2031402]
[1744338606748,0.27192853,80748.0,80747.0,0.2031402]
[1744338608046,0.14798993,80748.0,80747.0,0.2031402]
[1744338609253,0.1239327,80752.0,80751.0,0.123934]
[1744338612661,0.1984298,80754.0,80753.0,0.123931]
[1744338612846,0.1984298,80754.0,80753.0,0.484731]
[1744338613246,0.1984298,80754.0,80753.0,0.523731]
[1744338613452,0.0745,80754.0,80753.0,0.523731]
[1744338613652,0.037,80754.0,80753.0,0.523731]
[1744338614256,0.0758,80754.0,80753.0,0.523731]
[1744338616467,0.1997294,80754.0,80753.0,0.523731]
[1744338616957,0.1144,80754.0,80753.0,0.523731]
[1744338619951,0.2383294,80754.0,80753.0,0.484731]
[1744338620352,0.1144,80754.0,80753.0,0.484731]
[1744338620851,0.2383294,80754.0,80753.0,0.484731]
[1744338622768,0.1144,80754.0,80753.0,0.484731]
[1744338623067,0.12411399,80755.0,80754.0,0.1239294]
[1744338623068,0.00018579,80755.0,80754.0,0.1239294]
[1744338623253,0.00018579,80755.0,80754.0,0.2045294]
[1744338624564,0.12411369,80755.0,80754.0,0.2045294]
[1744338626362,0.12411369,80755.0,80754.0,0.1634294]
[1744338626661,0.12411369,80755.0,80754.0,0.1239294]
[1744338626957,0.12411369,80755.0,80751.0,0.00941026]
[1744338626958,0.00018579,80755.0,80751.0,0.00941026]
[1744338627261,0.00018579,80755.0,80736.0,0.4227784]
[1744338627262,0.1239417,80746.0,80736.0,0.4227784]
[1744338627455,0.1239417,80746.0,80736.0,0.3608]
[1744338627658,0.1239524,80739.0,80736.0,0.3608]
[1744338628561,0.2047524,80739.0,80736.0,0.3608]
[1744338628963,0.0619616,80758.0,80736.0,0.3608]
[1744338629152,0.0619547,80767.0,80754.0,0.4847294]
[1744338629354,0.081,80766.0,80754.0,0.4847294]
[1744338629661,0.081,80766.0,80754.0,0.5620294]
[1744338629863,0.22181008,80761.0,80754.0,0.5620294]
[1744338630457,0.0798,80760.0,80754.0,0.5620294]
[1744338630762,0.22181008,80761.0,80754.0,0.5620294]
[1744338630959,0.22181008,80761.0,80754.0,0.57861776]
[1744338633061,0.22181008,80761.0,80754.0,0.99551776]
[1744338633971,0.22181008,80761.0,80760.0,0.1239202]
[1744338634157,0.22181008,80761.0,80760.0,0.50130856]
[1744338634866,0.22181008,80761.0,80760.0,0.58140856]
[1744338635556,0.14840094,80765.0,80762.0,0.0619583]
[1744338635757,0.14840094,80765.0,80764.0,0.4847141]
[1744338636164,0.14840094,80765.0,80764.0,0.5642141]
[1744338637154,0.14840094,80765.0,80764.0,0.6740541]
[1744338638463,0.00018579,80769.0,80768.0,0.1239079]
[1744338638766,0.1238625,80798.0,80787.0,0.1238788]
[1744338639067,0.36988664,80805.0,80793.0,0.1238696]
[1744338639360,0.0769,80804.0,80793.0,0.13299661]
[1744338639561,0.0769,80804.0,80794.0,0.1238681]
[1744338639562,0.16657246,80795.0,80794.0,0.1238681]
[1744338639757,0.16657246,80795.0,80794.0,0.5626681]
[1744338640764,0.29043896,80795.0,80794.0,0.5236681]
[1744338641161,0.16657246,80795.0,80794.0,0.5236681]
[1744338641967,0.16657246,80795.0,80794.0,0.9797681]
[1744338642261,0.36988664,80820.0,80795.0,0.0619332]
[1744338642461,1e-08,80808.0,80807.0,0.8454481]
[1744338642655,1e-08,80808.0,80807.0,0.9552881]
[1744338643064,1e-08,80808.0,80807.0,1.0319481]
[1744338643257,0.2616611,80813.0,80812.0,0.1238405]
[1744338643465,0.1378204,80813.0,80812.0,0.1238405]
[1744338644465,0.0759,80813.0,80812.0,0.1238405]
[1744338644666,0.1238466,80808.0,80807.0,0.7216]
[1744338644870,0.1238466,80808.0,80807.0,0.3608]
[1744338645070,0.3738466,80808.0,80807.0,0.3608]
[1744338645273,0.3738466,80808.0,80807.0,0.2987]
[1744338645468,0.25,80808.0,80807.0,0.2987]